Cogmind - Beta 13 @@@ ROGUE MODE // 2024.06.13 @ 17:08:10 Player: tirrike Result: Self-destructed Performance ------------- Evolutions (2) 1000 Regions Visited (3) 600 Robots Destroyed (78) 390 Value Destroyed (1793) 1793 Prototype IDs (5) 100 Alien Tech Used (0) 0 Bonus (60) 60 TOTAL SCORE: 3943 Bonus ------- High Alert Combat Kills 60 Cogmind --------- Core Integrity 488/550 Matter 300/300 Energy 125/125 System Corruption 0% Temperature Cool (0) Movement Treading (160) Location -8/Materials Parts ------- > --- POWER (1) -------- Light Ion Engine > --- PROPULSION (3) --- Light Treads Light Treads Light Treads > --- UTILITY (5) ------ High-capacity Storage Unit Structural Scanner Improved Signal Interpreter Hardened Light Armor Plating > --- WEAPON (2) ------- Improved Assault Rifle Improved Assault Rifle > --- INVENTORY (20) --- Ion Engine ECM Suite Propulsion Shielding Hardened Light Armor Plating System Shield Authchip [Device] Authchip [Processor] Authchip [Processor] Authchip [Weapon] Mini Grenade Launcher Maul Peak State ------------ > --- POWER ------------ Light Deuterium Engine > --- PROPULSION ------- Light Treads Light Treads Light Treads > --- UTILITY ---------- High-capacity Storage Unit Structural Scanner Improved Sensor Array Improved Signal Interpreter Hardened Light Armor Plating > --- WEAPON ----------- Improved Assault Rifle Improved Assault Rifle > --- INVENTORY -------- Ion Engine Light Treads ECM Suite Propulsion Shielding Hardened Light Armor Plating System Shield Authchip [Device] Authchip [Processor] Authchip [Processor] Authchip [Weapon] Mini Grenade Launcher Maul [Rating: 24] Favorites ----------- Power Ion Engine Engine Ion Engine Power Core Light Nuclear Core Propulsion Light Treads Treads Light Treads Utility Large Storage Unit Device Seismic Detector Storage Large Storage Unit Processor Signal Interpreter Protection Light Armor Plating Weapon Heavy Assault Rifle Energy Gun Medium Laser Ballistic Gun Heavy Assault Rifle Ballistic Cannon Light Cannon Launcher Grenade Launcher Impact Weapon Maul Slashing Weapon Mining Claw Build | -11 -10 -9 -8 ------- Run | Yrd Mat Mat Mat Slots Evolved 4 | . . 2 2 Power . | . . . . Propulsion 1 | . . . 1 Utility 3 | . . 2 1 Weapon . | . . . . Parts Attached 79 | 6 11 50 12 Power 9 | 1 . 5 3 Engine 7 | 1 . 4 2 Core 2 | . . 1 1 Reactor . | . . . . Propulsion 13 | 2 . 9 2 Treads 13 | 2 . 9 2 Leg . | . . . . Wheel . | . . . . Hover . | . . . . Flight . | . . . . Utility 18 | 1 3 9 5 Device 6 | . 1 3 2 Storage 6 | 1 2 2 1 Processor 2 | . . 1 1 Hackware . | . . . . Protection 4 | . . 3 1 Artifact . | . . . . Weapon 39 | 2 8 27 2 Energy Gun 3 | 2 1 . . Energy Cannon . | . . . . Ballistic Gun 22 | . 4 17 1 Ballistic Cannon 3 | . . 3 . Launcher 1 | . 1 . . Special Weapon . | . . . . Impact Weapon 9 | . 1 7 1 Slashing Weapon 1 | . 1 . . Piercing Weapon . | . . . . Special Melee Weapon . | . . . . Unidentified Prototypes 2 | . . 2 . Parts Lost 4 | . . 2 2 Power 1 | . . . 1 Propulsion . | . . . . Utility 3 | . . 2 1 Weapon . | . . . . Highest Loss Streak 1 | . . 1 1 To Critical Strikes . | . . . . Average Slot Usage (%) 99 | . 99 99 94 Engine 11 | . 14 10 6 Treads 24 | . 28 22 27 Device 16 | . 13 19 12 Storage 11 | . 14 11 9 Processor 2 | . . 2 9 Protection 6 | . . 11 9 Energy Gun 2 | . 6 . . Ballistic Gun 16 | . 19 13 16 Ballistic Cannon 3 | . . 5 . Impact Weapon 1 | . 1 2 1 Naked Turns . | . . . . Heaviest Build 58 | 13 31 36 58 Greatest Support 60 | 40 40 40 60 Greatest Overweight (x) 3 | 3 . . . Average Overweight (x) . | . . . . Largest Inventory Capacity 20 | 8 15 20 20 Average Capacity 14 | 7 13 15 19 Most Carried 15 | 2 15 15 14 Average Carried 12 | 1 9 14 11 Final Capacity 20 | 8 15 15 20 Final Carried 15 | 2 15 15 11 Class Distribution -------------------- 56% | Mutant 38% | Scavenger-Mutant 3% | Scavenger-Skirmisher Dominant Class ---------------- Mutant | -10/Materials Scavenger-Mutant | -9/Materials Scavenger-Mutant | -8/Materials Resources | -11 -10 -9 -8 ----------- Run | Yrd Mat Mat Mat Matter Collected 1990 | 260 222 1039 469 Remotely . | . . . . Salvage Created 2439 | 29 452 1139 819 Parts 170 | 3 34 87 46 Haulers Intercepted 6 | . 1 5 . Recyclers Shooed 5 | . 2 3 . Parts Field Recycled . | . . . . Retrieved Matter . | . . . . Parts Self-Destructed . | . . . . Prevented . | . . . . Kills | -11 -10 -9 -8 ------- Run | Yrd Mat Mat Mat Combat Hostiles Destroyed 51 | . 10 24 17 Guns 36 | . 9 13 14 Cannons 11 | . . 11 . AOE 4 | . 1 . 3 Classes Destroyed 11 | 1 8 1 1 Worker 6 | . 1 3 2 Tunneler 1 | 1 . . . Hauler 6 | . 1 5 . Recycler 4 | . 2 1 1 Operator 2 | . 1 . 1 Watcher 8 | . 1 5 2 Swarmer 21 | . 7 10 4 Grunt 20 | . 2 7 11 Brawler 1 | . . . 1 Sentry 8 | . . 7 1 Subdweller 1 | . 1 . . Best Kill Streak 7 | 1 6 4 7 Combat Bots Only 6 | . 6 4 6 Max Kills in Single Turn 5 | 1 2 2 5 Gunslinging 1 | . . 1 1 Exploded 3 | . 1 . 3 Melee . | . . . . Uniques/NPCs Destroyed . | . . . . Combat | -11 -10 -9 -8 -------- Run | Yrd Mat Mat Mat Hostile Shots Fired 257 | . 37 132 88 Missed 73 | . 9 38 26 Damage Taken 2231 | . 259 1065 907 Core 226 | . 53 111 62 Absorbed by Shields . | . . . . Core Remaining (%) 83 | 100 78 72 . Volleys Fired 199 | 4 45 102 48 Largest 2 | 2 2 2 2 Hottest 90 | 90 90 58 46 Shots Fired 374 | 8 90 180 96 Gun 313 | 8 89 120 96 Cannon 60 | . . 60 . Launcher 1 | . 1 . . Special . | . . . . Kinetic 317 | . 41 180 96 Thermal 56 | 8 48 . . Explosive 1 | . 1 . . Electromagnetic . | . . . . Robot Hit Streak 21 | 6 10 15 21 Robot Miss Streak 6 | 1 3 6 3 Penetration Max . | . . . . Secondary Targets 4 | . . 1 3 Max Gunslinging Chain 1 | . . 1 1 Shots Hit Robots 239 | 6 56 115 62 Core Hits 113 | 1 24 50 38 Critical Kills . | . . . . Critical Parts Destroyed . | . . . . Critical Strikes 3 | . 2 1 . Burn 2 | . 2 . . Blast 1 | . . 1 . Melee Attacks 24 | . 5 17 2 Impact 23 | . 4 17 2 Slashing 1 | . 1 . . Piercing . | . . . . Sneak Attacks . | . . . . Combat Hostiles . | . . . . Follow-up Attacks . | . . . . Damage Inflicted 4471 | 70 739 1982 1680 Guns 2900 | 70 656 1190 984 Cannons 792 | . . 792 . Explosions 779 | . 83 . 696 Melee . | . . . . Ramming . | . . . . Kinetic 3244 | . 278 1982 984 Thermal 1144 | 70 378 . 696 Explosive 83 | . 83 . . Electromagnetic . | . . . . Impact . | . . . . Slashing . | . . . . Piercing . | . . . . Highest Corruption 3 | . 3 3 . Average Corruption 2 | . 2 2 . Corruption Purged . | . . . . Corruption Blocked . | . . . . Effects 16 | . 6 10 . Message Errors 4 | . 1 3 . Matter Fused 4 | . 2 2 . Heat Flow Errors 3 | . 2 1 . Energy Discharges 1 | . . 1 . Data Loss (minor) 2 | . 1 1 . Misfires 1 | . . 1 . Alerts 1 | . . 1 . Overload Shots . | . . . . Overflow Damage 11 | . . 5 6 Projectiles 5 | . . 5 . Explosions 6 | . . . 6 Melee . | . . . . Knockbacks 13 | . . 13 . Impact . | . . . . Kinetic 11 | . . 11 . Secondary 2 | . . 2 . Self-Inflicted Damage 46 | . 21 . 25 Shots 2 | . 1 . 1 Rammed . | . . . . Targets Rammed . | . . . . Kicked . | . . . . Crushed . | . . . . Highest Temperature 191 | 120 191 104 51 Average Temperature 38 | 61 60 16 17 Received Heat Transfer 855 | . 42 291 522 Siege Activations . | . . . . Robots Corrupted . | . . . . Combat Hostiles . | . . . . Parts Fried . | . . . . Impact Corruptions . | . . . . Robots Melted . | . . . . Combat Hostiles . | . . . . Parts Melted 5 | 2 3 . . Heat Transferred 1797 | 186 1211 . 400 Parts Sabotaged . | . . . . Parts Stolen . | . . . . Parts Stripped . | . . . . Power Chain Reactions . | . . . . Alert | -11 -10 -9 -8 ------- Run | Yrd Mat Mat Mat Peak Influence 475 | 5 210 426 475 Initial 52 | . 3 1 52 Average 131 | 1 47 166 252 Maximum Alert Level 2 | . 1 2 2 Low Security (%) 72 | 100 99 61 37 Level 1 22 | . . 31 46 Level 2 5 | . . 6 15 Level 3 . | . . . . Level 4 . | . . . . Level 5 . | . . . . High Security . | . . . . Max Security . | . . . . Squads Dispatched 7 | . 3 1 3 Investigation 4 | . 2 1 1 Extermination . | . . . . Reinforcement 3 | . 1 . 2 Assault . | . . . . Garrison . | . . . . Intercept . | . . . . Searches Triggered . | . . . . Construction Impeded . | . . . . Haulers Reinforced . | . . . . Active Scanning Responses . | . . . . Cargo Convoy Interrupts . | . . . . Stealth | -11 -10 -9 -8 --------- Run | Yrd Mat Mat Mat Distress Signals 5 | . 2 2 1 Communications Jammed . | . . . . Distress Signals . | . . . . Times Spotted 81 | . 19 37 25 Peak Tracking Total 5 | . 5 4 5 Tactical Retreats 5 | . 2 2 1 Traps | -11 -10 -9 -8 ------- Run | Yrd Mat Mat Mat Traps Triggered 8 | . 4 3 1 Indirectly . | . . . . Trap Hack Attempts . | . . . . Triggered . | . . . . Disarmed . | . . . . Reprogrammed . | . . . . Reused . | . . . . Traps Extracted . | . . . . Installed . | . . . . Triggered . | . . . . Machines | -11 -10 -9 -8 ---------- Run | Yrd Mat Mat Mat Machines Disabled 6 | . . 1 5 Max in Single Turn 3 | . . 1 3 Machines Repaired . | . . . . Machines Dismantled . | . . . . Machines Sabotaged . | . . . . Overloaded Fab Kills . | . . . . Hacking | -11 -10 -9 -8 --------- Run | Yrd Mat Mat Mat Machines Accessed 25 | . 9 13 3 Terminals 19 | . 7 11 1 Fabricators . | . . . . Repair Stations . | . . . . Recycling Units 5 | . 2 2 1 Scanalyzers . | . . . . Garrison Access 1 | . . . 1 Total Hacks 72 | . 22 41 9 Successful 35 | . 10 21 4 Failed 36 | . 11 20 5 Catastrophic 8 | . 4 2 2 Database Lockouts 1 | . 1 . . Manual 55 | . 17 32 6 Terminals 54 | . 16 34 4 Fabricators . | . . . . Repair Stations . | . . . . Recycling Units 15 | . 6 7 2 Scanalyzers . | . . . . Garrison Access 3 | . . . 3 Terminal Hacks 17 | . 4 12 1 Robot Analysis 4 | . 1 3 . Prototype ID Bank 2 | . . 2 . Terminal Index 1 | . . 1 . Alert Level 1 | . . 1 . Unreport Threat 2 | . . 2 . Locate Traps 2 | . 2 . . Security Status 1 | . . 1 . Hauler Manifests 3 | . 1 1 1 Zone Layout 1 | . . 1 . Fabricator Hacks . | . . . . Repair Station Hacks . | . . . . Recycling Unit Hacks 4 | . 2 2 . Retrieve Components 4 | . 2 2 . Scanalyzer . | . . . . Garrison Access Hacks . | . . . . Unauthorized Hacks 14 | . 4 7 3 Terminals 10 | . 3 5 2 Track 2 | . 1 1 . Botnet 5 | . 2 2 1 Operators 3 | . . 2 1 Fabricators . | . . . . Repair Stations . | . . . . Recycling Units 4 | . 1 2 1 Monitor 1 | . . 1 . Reject 3 | . 1 1 1 Scanalyzers . | . . . . Garrison Access . | . . . . Data Cores Recovered . | . . . . Used . | . . . . Hacking Detections 23 | . 9 12 2 Full Trace Events . | . . . . Feedback Events . | . . . . Feedback Blocked . | . . . . Robot Schematics Acquired . | . . . . Robots Built . | . . . . Authchips . | . . . . Time . | . . . . Total Robot Build Rating . | . . . . Part Schematics Acquired . | . . . . Parts Built . | . . . . Authchips . | . . . . Time . | . . . . Total Part Build Rating . | . . . . Parts Repaired . | . . . . Time . | . . . . Parts Recycled . | . . . . Recycled Matter . | . . . . Retrieved Matter . | . . . . Retrieved Components 27 | . 16 11 . Parts Scanalyzed . | . . . . Part Schematics Acquired . | . . . . Parts Damaged . | . . . . Bothacking | -11 -10 -9 -8 ------------ Run | Yrd Mat Mat Mat Used RIF Installer . | . . . . Robots Hacked . | . . . . Non-combat . | . . . . Combat . | . . . . Robot Hacks Applied . | . . . . Relay Couplers Released . | . . . . Fabnet Peak Effective % . | . . . . Robots Rewired . | . . . . Allies Hacked . | . . . . Hacks Repelled . | . . . . Allies | -11 -10 -9 -8 -------- Run | Yrd Mat Mat Mat Total Allies . | . . . . Largest Group . | . . . . Highest-Rated Group . | . . . . Highest-Rated Ally . | . . . . Total Orders . | . . . . Ally Attacks . | . . . . Total Damage . | . . . . Kills . | . . . . Allies Corrupted . | . . . . Allies Melted . | . . . . Intel | -11 -10 -9 -8 ------- Run | Yrd Mat Mat Mat Robot Analysis Total 4 | . 1 3 . Derelict Logs Recovered . | . . . . Drone Launches . | . . . . Drone Recoveries . | . . . . Exploration | -11 -10 -9 -8 ------------- Run | Yrd Mat Mat Mat Turns Passed 5416 | 93 1885 2828 610 Spaces Moved 2657 | 42 1010 1335 270 Core 8 | 8 . . . Treads 2649 | 34 1010 1335 270 Legs . | . . . . Wheels . | . . . . Hover . | . . . . Flight . | . . . . Fastest Speed 50 | 50 160 160 160 Average Speed 159 | 149 160 160 160 Slowest Speed 200 | 200 160 160 160 Overloaded Moves . | . . . . Propulsion Burnouts . | . . . . Robots Hopped . | . . . . Cave-ins Triggered . | . . . . Exploration Rate (%) 55 | 5 99 96 21 Regions Visited 3 Branch Regions . Pre-discovered Areas . | . . . . Known Exits Taken 1 | . . 1 . Unknown Exits Taken 2 | 1 1 . . Scrap Searched . | . . . . Spaces Dug 24 | . 5 17 2 Terrain Destroyed 60 | . 13 17 30 Melee 24 | . 5 17 2 Projectile . | . . . . AOE 36 | . 8 . 28 Terrain Rammed . | . . . . Walls Destroyed . | . . . . Machines Disabled . | . . . . Actions | -11 -10 -9 -8 --------- Run | Yrd Mat Mat Mat Total 3403 | 64 1182 1810 347 Wait 339 | 5 86 245 3 Move 2654 | 41 1009 1334 270 Hop . | . . . . Pick Up 65 | 8 20 31 6 Fast Attach . | . . . . Attach 18 | 6 2 5 5 Detach . | . . . . Swap 61 | . 9 45 7 Drop 43 | . 6 31 6 Fire 199 | 4 45 102 48 Melee 24 | . 5 17 2 Ram . | . . . . Kick . | . . . . Crush . | . . . . Escape Stasis . | . . . . Rewire . | . . . . Trap . | . . . . Miscellaneous . | . . . . Route ------- -11/Scrapyard -10/Materials (discovered 6 exits: *Mat x3 / [*Min x2] / [*Sub]) -9/Materials (discovered 5 exits: *Mat x3 / [*Min x2]) -8/Materials History --------- Turn | Location | Event 17 | -11/Scrapyard | Discovered new exit (range 15) 94 | -11/Scrapyard | Entered Materials 216 | -10/Materials | Discovered new exit (range 4) 304 | -10/Materials | Build established: Mutant 307 | -10/Materials | Discovered new exit (range 16) 490 | -10/Materials | Discovered new exit (range 16) 749 | -10/Materials | Central database locked down 794 | -10/Materials | Derelicts attacked the area 1276 | -10/Materials | Discovered new exit (range 4) 1637 | -10/Materials | Discovered new exit (range 16) 1749 | -10/Materials | Discovered new exit (range 9) 1979 | -10/Materials | Entered another Materials area 1979 | -9/Materials | Evolved 2 slots: Utility x2 2073 | -9/Materials | Discovered new exit (range 5) 2910 | -9/Materials | Discovered new exit (range 13) 3243 | -9/Materials | Discovered new exit (range 8) 3384 | -9/Materials | Build established: Scavenger-Mutant 4050 | -9/Materials | Discovered new exit (range 16) 4171 | -9/Materials | Identified exit to Materials 4776 | -9/Materials | Discovered exit to Materials (range 16) 4807 | -9/Materials | Entered another Materials area 4807 | -8/Materials | Evolved 2 slots: Propulsion x1, Utility x1 5417 | -8/Materials | Self-destructed Last Messages --------------- 05376_ S-10 Pest destroyed. 05379_ K-01 Serf collects debris. 05379_ Acquired 6 matter. 05380_ K-01 Serf collects debris. 05381_ S-10 Pest destroyed. 05381_ K-01 Serf destroyed. 05382_ Acquired 6 matter. 05383_ K-01 Serf collects debris. 05393_ Acquired Lgt. Ion Engine. 05396_ Dropped Lgt. Nuclear Core. 05396_ K-01 Serf collects debris. 05403_ Triggered Alarm Trap. 05403_ An alarm sounds. 05403_ ALERT: Alarm triggered, dispatching investigation squad. 05403_ K-01 Serf collects debris. 05413_ R-06 Scavenger collects Lgt. Assault Rifle. 05413_ K-01 Serf collects debris. 05414_ Acquired 10 matter. 05414_ U-05 Engineer lays Concrete. 05416_ R-06 Scavenger collects Flight Unit. Map ----- +----------------------------------------------------+ | # " " # ????????????????????????????????????? | | # / ! " # ????????????????????????????????????? | | # =% " # ????????????????????????????????????? | | # [%! # ????????????????????????????????????? | | # # ????????????????????????????????????? | | ###+#### ########??????????????????????????????? | | # ########??????????????????????????????? | | "" # ????????????????????????? | | ""S + ????????????????????????? | | "" # ????????????????????????? | | # ########## ?????????????????????????? | | """ # ########## ???????????????????????????? | | """ # #######??? ???????????????????????????? | | """ # # ##?## ##?????????????????????????? | | # # ##?## ##?????????????????????????? | | #+###### # ##?## ##?????????????????????????? | | # # ##?## ##?????????????????????????? | | # # ##?## ##?????????????????????????? | | # # ##?## ##?????????????????????????? | | ###+#### # ##?## ##????????????? ??????????? | | # # # ##### ###?????????? ggg??????????? | | # # # ##### ######### ? !! ?????????? | | # + ###;### ########! %! ?????????? | | # # [* ou ????????? | | # # %=== r T ????????? | | # #==%t% @ g ????????? | | ####+### *[####### # #####"??????????????? | | # #[%%############# ######??????????????? | | # =#*==##???######## # ??????????????????? | | # =% ##?????????## # ??????????????????? | | # !#* ##?????????## # ??????????????????? | | # "T" # =##?????????## ##??????????????????? | | # """ # %##?????????## ##??????????????????? | | ######## /##?????????## ##??????????????????? | | ######## ##????????? # ##??????????????????? | | ??????## ##????????? # ##??????????????????? | | ####??## ##?????????"# ##??????????????????? | | #####?## ##?????????"# ##??????????????????? | | !!###?## ##?????????"# ##??????????????????? | | !##?## ###?## ? ##??????????????????? | | ##### ############# ??????????????????? | | ##### ##### ### ##?????????????????????? | | " ##?????????????????????? | | "T ##?????????????????????? | | ######## ##### #######?????????????????????? | | ############################?????????????????????? | | ??????########?########??????????????????????????? | | ?????????????????????????????????????????????????? | | ?????????????????????????????????????????????????? | | | +----------------------------------------------------+ Best States ------------- Heat Dissipation 31 Energy Generation 14 Energy Capacity 250 Matter Stores 300 Matter Capacity 300 Sight Range 16 Robot Scan Range 15 Terrain Scan Density 10 Armor Coverage 150 Evasion (%) 40 Recoil Reduction 3 Authchip Count 4 Item Schematics ----------------- None Robot Schematics ------------------ None Fabricated ------------ Nothing Alien Tech Used ----------------- None Achievements -------------- None Challenges ------------ None Game ------ Seed ThermalDeepLink Manual? 0 Play Time 01:30:01 Cumulative 75.5 hours Start 2024.06.13 @ 14:17:38 End 2024.06.13 @ 17:08:10 Sessions 1 Manual Loads 0 Difficulty Rogue Special Mode None Game No. 21 Rogue 21 Adventurer 0 Explorer 0 Win Type - Total 2 Types 1/0/0/1/0/0/0/0/0 Lore% 31 Gallery% 31 Achievement% 35 Wizard Run 0 Options --------- Layout 0 ASCII 0 Keyboard 0 Movement Mouse Keybinds 0 Fullscreen 1 Font 18/SmallcapsGlow Map View 76x50 Zoom Use 0% Tactical HUD 1 Map Filters NONE Filters NONE Steam 1 RUN: 05bf334e-aeaf-477d-a553-69f22ba8f1de